[Event "FIDE Women World Blitz 2021"]
[Site "Warsaw"]
[Date "2021.12.30"]
[Round "14.17"]
[White "Mamedjarova, Turkan"]
[Black "Kamalidenova, Meruert"]
[Result "0-1"]
[ECO "E61"]
[WhiteElo "2264"]
[BlackElo "2339"]
[Annotator "NA"]
[PlyCount "64"]
[EventDate "2021.12.29"]
[EventType "swiss"]
[EventCountry "POL"]
[Tiebreak "Cut1 Buchholz"]
[SourceTitle "playchess.com"]
[Source "ChessBase"]
[SourceQuality "1"]
[TimeControl "180+2"]

1. d4 {[%emt 0:00:02]} Nf6 {[%emt 0:00:01]} 2. c4 {[%emt 0:00:00]} g6 {[%emt 0:
00:01]} 3. Nc3 {[%emt 0:00:01]} Bg7 {[%emt 0:00:02]} 4. Bg5 {[%emt 0:00:01]}
O-O {[%emt 0:00:03]} 5. Nf3 {[%emt 0:00:04]} d6 {[%emt 0:00:03]} 6. e3 {
[%emt 0:00:03]} h6 {[%emt 0:00:10]} 7. Bh4 {[%emt 0:00:01]} c5 {[%emt 0:00:15]}
8. Be2 {[%emt 0:00:07]} g5 {[%emt 0:00:09]} 9. Bg3 {[%emt 0:00:04]} Nh5 {
[%emt 0:00:01]} 10. Qc2 {[%emt 0:01:13]} Nxg3 {[%emt 0:00:09]} 11. hxg3 {
[%emt 0:00:01]} f5 {[%emt 0:00:07]} 12. O-O-O {[%emt 0:00:06]} cxd4 {[%emt 0:
00:10]} 13. Nxd4 {[%emt 0:00:09]} Nc6 {[%emt 0:00:05]} 14. g4 {[%emt 0:00:09]}
Nxd4 {[%emt 0:00:12]} 15. exd4 {[%emt 0:00:01]} e6 {[%emt 0:00:02]} 16. gxf5 {
[%emt 0:00:03]} exf5 {[%emt 0:00:02]} 17. Bf3 {[%emt 0:00:13]} a5 {[%emt 0:00:
09]} 18. Bd5+ {[%emt 0:00:02]} Kh8 {[%emt 0:00:04]} 19. Rd3 {[%emt 0:00:07]} f4
{[%emt 0:00:09]} 20. g3 {[%emt 0:00:15]} fxg3 {[%emt 0:00:04]} 21. Rxg3 {
[%emt 0:00:04]} Bf5 {[%emt 0:00:08]} 22. Qd2 {[%emt 0:00:03]} Bh7 {[%emt 0:00:
10]} 23. Be4 {[%emt 0:00:01]} Qf6 {[%emt 0:00:27]} 24. Nd5 {[%emt 0:00:02]}
Qxf2 {[%emt 0:00:12]} 25. Qxf2 {[%emt 0:00:24]} Rxf2 {[%emt 0:00:01]} 26. Bxh7
{[%emt 0:00:01]} Kxh7 {[%emt 0:00:02]} 27. Rxg5 {[%emt 0:00:01]} Bxd4 {[%emt 0:
00:03]} 28. Rg4 {[%emt 0:00:03]} Bxb2+ {[%emt 0:00:07]} 29. Kd1 {[%emt 0:00:01]
} Raf8 {[%emt 0:00:10]} 30. Rgh4 {[%emt 0:00:03]} Bg7 {[%emt 0:00:01]} 31. Ne3
{[%emt 0:00:09]} Rxa2 {[%emt 0:00:04]} 32. Kc1 {[%emt 0:00:02]} Rff2 {[%emt 0:
00:05]} 0-1

[Event "FIDE Women World Blitz 2021"]
[Site "Warsaw"]
[Date "2021.12.30"]
[Round "14.18"]
[White "Kovanova, Baira"]
[Black "Garifullina, Leya"]
[Result "1-0"]
[ECO "B90"]
[WhiteElo "2331"]
[BlackElo "2416"]
[Annotator "NA"]
[PlyCount "79"]
[EventDate "2021.12.29"]
[EventType "swiss"]
[EventCountry "POL"]
[Tiebreak "Cut1 Buchholz"]
[SourceTitle "playchess.com"]
[Source "ChessBase"]
[SourceQuality "1"]
[TimeControl "180+2"]

1. e4 {[%emt 0:00:01]} c5 {[%emt 0:00:02]} 2. Nf3 {[%emt 0:00:01]} d6 {[%emt 0:
00:02]} 3. d4 {[%emt 0:00:02]} cxd4 {[%emt 0:00:01]} 4. Nxd4 {[%emt 0:00:01]}
Nf6 {[%emt 0:00:01]} 5. Nc3 {[%emt 0:00:01]} a6 {[%emt 0:00:01]} 6. Be3 {
[%emt 0:00:02]} e5 {[%emt 0:00:02]} 7. Nf3 {[%emt 0:00:01]} Be7 {[%emt 0:00:01]
} 8. Bc4 {[%emt 0:00:02]} O-O {[%emt 0:00:02]} 9. O-O {[%emt 0:00:02]} Be6 {
[%emt 0:00:02]} 10. Bb3 {[%emt 0:00:01]} Nc6 {[%emt 0:00:01]} 11. Qe2 {[%emt 0:
00:02]} Na5 {[%emt 0:00:04]} 12. Rfd1 {[%emt 0:00:04]} Nxb3 {[%emt 0:00:06]}
13. cxb3 {[%emt 0:00:01]} h6 {[%emt 0:00:08]} 14. Nxe5 {[%emt 0:00:04]} Qc7 {
[%emt 0:00:13]} 15. Nc4 {[%emt 0:00:17]} b5 {[%emt 0:01:36]} 16. Nb6 {[%emt 0:
00:01]} Rab8 {[%emt 0:00:01]} 17. Nbd5 {[%emt 0:00:48]} Bxd5 {[%emt 0:00:04]}
18. Nxd5 {[%emt 0:00:01]} Nxd5 {[%emt 0:00:02]} 19. Rxd5 {[%emt 0:00:02]} Rfc8
{[%emt 0:00:07]} 20. Rad1 {[%emt 0:00:11]} Qc2 {[%emt 0:00:07]} 21. Qg4 {
[%emt 0:00:17]} Bf6 {[%emt 0:00:18]} 22. Rc1 {[%emt 0:00:05]} Qxc1+ {[%emt 0:
00:04]} 23. Bxc1 {[%emt 0:00:01]} Rxc1+ {[%emt 0:00:01]} 24. Rd1 {[%emt 0:00:
01]} Rbc8 {[%emt 0:00:03]} 25. g3 {[%emt 0:00:12]} R8c2 {[%emt 0:00:10]} 26.
Rxc1 {[%emt 0:00:04]} Rxc1+ {[%emt 0:00:01]} 27. Kg2 {[%emt 0:00:01]} Rc2 {
[%emt 0:00:01]} 28. Qd1 {[%emt 0:00:05]} Rxb2 {[%emt 0:00:02]} 29. Qxd6 {
[%emt 0:00:01]} Rxa2 {[%emt 0:00:02]} 30. e5 {[%emt 0:00:14]} Bg5 {[%emt 0:00:
01]} 31. h4 {[%emt 0:00:07]} Bc1 {[%emt 0:00:07]} 32. b4 {[%emt 0:00:03]} g6 {
[%emt 0:00:06]} 33. e6 {[%emt 0:00:01]} Re2 {[%emt 0:00:15]} 34. exf7+ {
[%emt 0:00:08]} Kxf7 {[%emt 0:00:01]} 35. Qc7+ {[%emt 0:00:01]} Kf6 {[%emt 0:
00:02]} 36. Qxc1 {[%emt 0:00:01]} Re4 {[%emt 0:00:01]} 37. Qc6+ {[%emt 0:00:01]
} Kf5 {[%emt 0:00:02]} 38. Kf3 {[%emt 0:00:11]} Rc4 {[%emt 0:00:02]} 39. Qxa6 {
[%emt 0:00:05]} h5 {[%emt 0:00:02]} 40. Qxb5+ {[%emt 0:00:02]} 1-0

[Event "FIDE Women World Blitz 2021"]
[Site "Warsaw"]
[Date "2021.12.30"]
[Round "14.19"]
[White "Pavlidou, Ekaterini"]
[Black "Berend, Elvira"]
[Result "0-1"]
[ECO "E70"]
[WhiteElo "2177"]
[BlackElo "2328"]
[Annotator "NA"]
[PlyCount "150"]
[EventDate "2021.12.29"]
[EventType "swiss"]
[EventCountry "POL"]
[Tiebreak "Cut1 Buchholz"]
[SourceTitle "playchess.com"]
[Source "ChessBase"]
[SourceQuality "1"]
[TimeControl "180+2"]

1. d4 {[%emt 0:00:03]} Nf6 {[%emt 0:00:02]} 2. c4 {[%emt 0:00:01]} g6 {[%emt 0:
00:04]} 3. Nc3 {[%emt 0:00:01]} Bg7 {[%emt 0:00:02]} 4. e4 {[%emt 0:00:01]} d6
{[%emt 0:00:02]} 5. Bd3 {[%emt 0:00:01]} O-O {[%emt 0:00:08]} 6. Nge2 {[%emt 0:
00:02]} Nc6 {[%emt 0:00:07]} 7. O-O {[%emt 0:00:14]} e5 {[%emt 0:00:05]} 8. d5
{[%emt 0:00:01]} Nd4 {[%emt 0:00:16]} 9. Nxd4 {[%emt 0:00:02]} exd4 {[%emt 0:
00:02]} 10. Ne2 {[%emt 0:00:01]} Re8 {[%emt 0:00:18]} 11. Bg5 {[%emt 0:00:25]}
h6 {[%emt 0:00:07]} 12. Bxf6 {[%emt 0:00:02]} Qxf6 {[%emt 0:00:27]} 13. Qc2 {
[%emt 0:00:20]} c5 {[%emt 0:00:04]} 14. h3 {[%emt 0:00:29]} Qh4 {[%emt 0:00:14]
} 15. f4 {[%emt 0:00:13]} f5 {[%emt 0:00:09]} 16. Kh2 {[%emt 0:00:36]} fxe4 {
[%emt 0:00:02]} 17. Bxe4 {[%emt 0:00:02]} Rxe4 {[%emt 0:00:08]} 18. Qxe4 {
[%emt 0:00:01]} Bf5 {[%emt 0:00:02]} 19. Qf3 {[%emt 0:00:03]} Re8 {[%emt 0:00:
06]} 20. Ng3 {[%emt 0:00:02]} Bc2 {[%emt 0:00:23]} 21. Rae1 {[%emt 0:00:08]}
Rf8 {[%emt 0:00:07]} 22. Re6 {[%emt 0:00:13]} g5 {[%emt 0:00:19]} 23. f5 {
[%emt 0:00:05]} Be5 {[%emt 0:00:02]} 24. Rxe5 dxe5 {[%emt 0:00:01]} 25. d6 {
[%emt 0:00:13]} e4 {[%emt 0:00:01]} 26. Qf2 {[%emt 0:00:07]} Bd3 {[%emt 0:00:
06]} 27. Rd1 {[%emt 0:00:06]} e3 {[%emt 0:00:03]} 28. Qf3 {[%emt 0:00:03]} Bc2
{[%emt 0:00:05]} 29. Qd5+ {[%emt 0:00:04]} Kh8 {[%emt 0:00:05]} 30. Qe5+ {
[%emt 0:00:01]} Kg8 {[%emt 0:00:01]} 31. Qe6+ {[%emt 0:00:02]} Kh8 {[%emt 0:00:
04]} 32. Rf1 {[%emt 0:00:02]} e2 {[%emt 0:00:11]} 33. Qe5+ {[%emt 0:00:07]} Kg8
{[%emt 0:00:01]} 34. Qe6+ {[%emt 0:00:02]} Kh8 {[%emt 0:00:00]} 35. Qxe2 {
[%emt 0:00:01]} Ba4 {[%emt 0:00:05]} 36. Qe5+ {[%emt 0:00:04]} Kg8 {[%emt 0:00:
01]} 37. Qe6+ {[%emt 0:00:03]} Rf7 {[%emt 0:00:00]} 38. Qg6+ {[%emt 0:00:03]}
Kf8 {[%emt 0:00:02]} 39. f6 {[%emt 0:00:04]} Bd7 {[%emt 0:00:03]} 40. Qe4 {
[%emt 0:00:04]} Qxe4 {[%emt 0:00:02]} 41. Nxe4 {[%emt 0:00:01]} Bc6 {[%emt 0:
00:02]} 42. Nxc5 {[%emt 0:00:02]} b6 {[%emt 0:00:03]} 43. Ne6+ {[%emt 0:00:02]}
Ke8 {[%emt 0:00:01]} 44. Ng7+ {[%emt 0:00:03]} Kd7 {[%emt 0:00:01]} 45. Nf5 {
[%emt 0:00:00]} Rxf6 {[%emt 0:00:01]} 46. g4 {[%emt 0:00:02]} Be4 {[%emt 0:00:
04]} 47. Re1 {[%emt 0:00:04]} Bxf5 {[%emt 0:00:01]} 48. gxf5 {[%emt 0:00:02]}
Rxf5 {[%emt 0:00:01]} 49. Re7+ {[%emt 0:00:01]} Kxd6 {[%emt 0:00:01]} 50. Rxa7
{[%emt 0:00:01]} Rf2+ {[%emt 0:00:03]} 51. Kg3 {[%emt 0:00:01]} Rxb2 {[%emt 0:
00:01]} 52. Rh7 {[%emt 0:00:04]} d3 {[%emt 0:00:02]} 53. Kf3 {[%emt 0:00:00]}
Kc5 {[%emt 0:00:02]} 54. Rxh6 {[%emt 0:00:02]} Kxc4 {[%emt 0:00:01]} 55. Rc6+ {
[%emt 0:00:01]} Kd4 {[%emt 0:00:02]} 56. a4 {[%emt 0:00:06]} Ra2 {[%emt 0:00:
02]} 57. Rxb6 {[%emt 0:00:04]} Rxa4 {[%emt 0:00:01]} 58. Rg6 {[%emt 0:00:03]}
Ra5 {[%emt 0:00:01]} 59. Rd6+ {[%emt 0:00:02]} Kc3 {[%emt 0:00:01]} 60. Ke4 {
[%emt 0:00:03]} d2 {[%emt 0:00:01]} 61. Rc6+ {[%emt 0:00:01]} Kb2 {[%emt 0:00:
01]} 62. Rd6 {[%emt 0:00:01]} Kc1 {[%emt 0:00:01]} 63. Rc6+ {[%emt 0:00:00]}
Kd1 {[%emt 0:00:01]} 64. Kf3 {[%emt 0:00:01]} Ra3+ {[%emt 0:00:02]} 65. Kf2 {
[%emt 0:00:01]} Rxh3 {[%emt 0:00:02]} 66. Rg6 {[%emt 0:00:03]} Rh2+ {[%emt 0:
00:02]} 67. Kf1 {[%emt 0:00:01]} Rh1+ {[%emt 0:00:01]} 68. Kf2 {[%emt 0:00:00]}
Rh7 {[%emt 0:00:03]} 69. Rxg5 {[%emt 0:00:02]} Rc7 {[%emt 0:00:01]} 70. Ra5 {
[%emt 0:00:04]} Kc2 {[%emt 0:00:02]} 71. Ra2+ {[%emt 0:00:02]} Kd3 {[%emt 0:00:
01]} 72. Ra3+ {[%emt 0:00:02]} Rc3 {[%emt 0:00:01]} 73. Ra1 {[%emt 0:00:02]}
Rc1 {[%emt 0:00:01]} 74. Ra3+ {[%emt 0:00:01]} Kc4 {[%emt 0:00:01]} 75. Ra4+ {
[%emt 0:00:08]} Kb3 {[%emt 0:00:01]} 0-1

[Event "FIDE Women World Blitz 2021"]
[Site "Warsaw"]
[Date "2021.12.30"]
[Round "14.20"]
[White "Nomin-Erdene, Davaademberel"]
[Black "Gaponenko, Inna"]
[Result "0-1"]
[ECO "B06"]
[WhiteElo "2188"]
[BlackElo "2339"]
[Annotator "NA"]
[PlyCount "50"]
[EventDate "2021.12.29"]
[EventType "swiss"]
[EventCountry "POL"]
[Tiebreak "Cut1 Buchholz"]
[SourceTitle "playchess.com"]
[Source "ChessBase"]
[SourceQuality "1"]
[TimeControl "180+2"]

1. e4 {[%emt 0:00:01]} g6 {[%emt 0:00:01]} 2. d4 {[%emt 0:00:00]} Bg7 {[%emt 0:
00:00]} 3. Nc3 {[%emt 0:00:01]} d6 {[%emt 0:00:01]} 4. Be3 {[%emt 0:00:01]} a6
{[%emt 0:00:00]} 5. a4 {[%emt 0:00:01]} Nc6 {[%emt 0:00:01]} 6. f3 {[%emt 0:00:
01]} e5 {[%emt 0:00:01]} 7. Nge2 {[%emt 0:00:04]} exd4 {[%emt 0:00:10]} 8. Nxd4
{[%emt 0:00:01]} Nge7 {[%emt 0:00:02]} 9. Bc4 {[%emt 0:00:11]} O-O {[%emt 0:00:
05]} 10. O-O {[%emt 0:00:01]} Kh8 {[%emt 0:00:26]} 11. Qd2 {[%emt 0:00:23]} f5
{[%emt 0:00:05]} 12. Nxc6 {[%emt 0:00:02]} Nxc6 {[%emt 0:00:15]} 13. Bh6 {
[%emt 0:00:05]} Ne5 {[%emt 0:00:08]} 14. Bb3 {[%emt 0:00:09]} Bxh6 {[%emt 0:00:
24]} 15. Qxh6 {[%emt 0:00:01]} c6 {[%emt 0:00:03]} 16. Rad1 {[%emt 0:00:04]}
Qe7 {[%emt 0:00:07]} 17. Rfe1 {[%emt 0:00:15]} f4 {[%emt 0:00:01]} 18. Ne2 {
[%emt 0:00:15]} Qf6 {[%emt 0:00:01]} 19. Rd2 {[%emt 0:00:20]} Bg4 {[%emt 0:00:
32]} 20. Qxf4 {[%emt 0:00:59]} Qg7 {[%emt 0:00:31]} 21. Qg3 {[%emt 0:00:06]}
Bxf3 {[%emt 0:00:01]} 22. Rxd6 {[%emt 0:00:02]} Bxe2 {[%emt 0:00:24]} 23. Rxe2
{[%emt 0:00:00]} c5 {[%emt 0:00:00]} 24. Bd5 {[%emt 0:00:09]} Rf6 {[%emt 0:00:
03]} 25. Rxf6 {[%emt 0:00:10]} Qxf6 {[%emt 0:00:01]} 0-1

[Event "FIDE Women World Blitz 2021"]
[Site "Warsaw"]
[Date "2021.12.30"]
[Round "14.21"]
[White "Vantika Agrawal"]
[Black "Danielian, Elina"]
[Result "0-1"]
[ECO "A60"]
[WhiteElo "2329"]
[BlackElo "2450"]
[Annotator "ChessBase"]
[PlyCount "90"]
[EventDate "2021.12.29"]
[EventType "swiss"]
[EventCountry "POL"]
[Tiebreak "Cut1 Buchholz"]
[SourceTitle "playchess.com"]
[Source "ChessBase"]
[SourceQuality "1"]
[TimeControl "180+2"]

1. d4 {[%emt 0:00:01]} Nf6 {[%emt 0:00:01]} 2. c4 e6 {[%emt 0:00:01]} 3. g3 {
[%emt 0:00:01]} c5 {[%emt 0:00:00]} 4. d5 {[%emt 0:00:00]} exd5 {[%emt 0:00:01]
} 5. cxd5 {[%emt 0:00:01]} Bd6 6. Nc3 {[%emt 0:00:02]} Bc7 {[%emt 0:00:01]} 7.
Nf3 {[%emt 0:00:02]} d6 {[%emt 0:00:00]} 8. Bg2 {[%emt 0:00:01]} O-O {[%emt 0:
00:01]} 9. O-O {[%emt 0:00:02]} a6 {[%emt 0:00:01]} 10. a4 {[%emt 0:00:00]}
Nbd7 {[%emt 0:00:01]} 11. h3 {[%emt 0:00:02]} Re8 {[%emt 0:00:01]} 12. Re1 {
[%emt 0:00:03]} Rb8 {[%emt 0:00:00]} 13. e4 {[%emt 0:00:08]} b5 {[%emt 0:00:12]
} 14. axb5 {[%emt 0:00:06]} axb5 {[%emt 0:00:01]} 15. e5 {[%emt 0:00:29]} Nxe5
{[%emt 0:00:09]} 16. Nxe5 {[%emt 0:00:02]} dxe5 {[%emt 0:00:02]} 17. Bg5 {
[%emt 0:00:04]} Bf5 {[%emt 0:00:45]} 18. Qf3 {[%emt 0:00:15]} Bg6 {[%emt 0:00:
06]} 19. Red1 {[%emt 0:00:40]} Bd6 {[%emt 0:00:14]} 20. Ra6 {[%emt 0:00:06]} e4
{[%emt 0:00:51]} 21. Qe2 {[%emt 0:00:47]} e3 {[%emt 0:00:23]} 22. Bxe3 {
[%emt 0:00:08]} c4 {[%emt 0:00:02]} 23. Qd2 {[%emt 0:00:19]} h6 {[%emt 0:00:11]
} 24. Bf4 {[%emt 0:00:12]} Bxf4 {[%emt 0:00:10]} 25. Qxf4 {[%emt 0:00:01]} b4 {
[%emt 0:00:01]} 26. Na4 {[%emt 0:00:05]} c3 {[%emt 0:00:02]} 27. bxc3 {[%emt 0:
00:03]} b3 {[%emt 0:00:01]} 28. Nb2 {[%emt 0:00:04]} Re2 {[%emt 0:00:06]} 29.
Rd2 {[%emt 0:00:01]} Re1+ {[%emt 0:00:11]} 30. Kh2 {[%emt 0:00:01]} Bc2 {
[%emt 0:00:03]} 31. c4 {[%emt 0:00:04]} Qc8 {[%emt 0:00:06]} 32. Rc6 {[%emt 0:
00:02]} Qe8 {[%emt 0:00:01]} 33. d6 {[%emt 0:00:03]} Rd8 34. c5 {[%emt 0:00:01]
} Be4 {[%emt 0:00:06]} 35. Rc7 {[%emt 0:00:04]} Bxg2 {[%emt 0:00:02]} 36. Kxg2
{[%emt 0:00:01]} Qb5 {[%emt 0:00:03]} 37. Qc4 {[%emt 0:00:04]} Qa5 {[%emt 0:00:
02]} 38. Qd4 {[%emt 0:00:05]} Qa8+ {[%emt 0:00:03]} 39. c6 {[%emt 0:00:02]} Qa1
{[%emt 0:00:02]} 40. Nd1 {[%emt 0:00:03]} Qa5 {[%emt 0:00:08]} 41. Rb7 {
[%emt 0:00:04]} Qa6 {[%emt 0:00:04]} 42. Qd3 {[%emt 0:00:04]} Qxc6+ {[%emt 0:
00:01]} 43. Qf3 {[%emt 0:00:01]} Qc4 {[%emt 0:00:03]} 44. d7 {[%emt 0:00:01]}
Qf1+ {[%emt 0:00:01]} 45. Kh2 {[%emt 0:00:01]} Qg1# {[%emt 0:00:01]} 0-1

[Event "FIDE Women World Blitz 2021"]
[Site "Warsaw"]
[Date "2021.12.30"]
[Round "14.22"]
[White "Efimenko, Maria"]
[Black "Balajayeva, Khanim"]
[Result "0-1"]
[ECO "C95"]
[WhiteElo "2207"]
[BlackElo "2369"]
[Annotator "NA"]
[PlyCount "96"]
[EventDate "2021.12.29"]
[EventType "swiss"]
[EventCountry "POL"]
[Tiebreak "Cut1 Buchholz"]
[SourceTitle "playchess.com"]
[Source "ChessBase"]
[SourceQuality "1"]
[TimeControl "180+2"]

1. e4 {[%emt 0:00:00]} e5 {[%emt 0:00:00]} 2. Nf3 {[%emt 0:00:01]} Nc6 {
[%emt 0:00:01]} 3. Bb5 {[%emt 0:00:01]} a6 4. Ba4 Nf6 {[%emt 0:00:01]} 5. d3 {
[%emt 0:00:02]} d6 {[%emt 0:00:03]} 6. c3 {[%emt 0:00:06]} Be7 {[%emt 0:00:01]}
7. O-O {[%emt 0:00:03]} O-O {[%emt 0:00:02]} 8. h3 {[%emt 0:00:03]} b5 {
[%emt 0:00:06]} 9. Bc2 {[%emt 0:00:03]} Nb8 {[%emt 0:00:01]} 10. d4 {[%emt 0:
00:03]} Nbd7 {[%emt 0:00:01]} 11. Nbd2 {[%emt 0:00:06]} Bb7 {[%emt 0:00:01]}
12. Re1 {[%emt 0:00:01]} c5 {[%emt 0:00:02]} 13. Nf1 {[%emt 0:00:06]} cxd4 {
[%emt 0:00:33]} 14. cxd4 {[%emt 0:00:01]} Re8 {[%emt 0:00:00]} 15. Ng3 {
[%emt 0:00:04]} Bf8 {[%emt 0:00:04]} 16. Be3 {[%emt 0:00:19]} Rc8 {[%emt 0:00:
03]} 17. Rc1 {[%emt 0:00:11]} g6 {[%emt 0:00:16]} 18. Qd2 {[%emt 0:00:21]} exd4
{[%emt 0:00:32]} 19. Bxd4 {[%emt 0:00:08]} Ne5 {[%emt 0:00:19]} 20. Qf4 {
[%emt 0:00:02]} Nxf3+ {[%emt 0:00:11]} 21. Qxf3 {[%emt 0:00:01]} Bg7 {[%emt 0:
00:01]} 22. Bb3 {[%emt 0:00:19]} Rxc1 {[%emt 0:00:10]} 23. Rxc1 {[%emt 0:00:01]
} Qe7 {[%emt 0:00:01]} 24. Bb6 {[%emt 0:00:19]} Rc8 {[%emt 0:00:12]} 25. Rxc8+
{[%emt 0:00:03]} Bxc8 {[%emt 0:00:01]} 26. Qc3 {[%emt 0:00:02]} Bb7 {[%emt 0:
00:04]} 27. Qc7 {[%emt 0:00:45]} Qxc7 {[%emt 0:00:02]} 28. Bxc7 {[%emt 0:00:01]
} Nxe4 {[%emt 0:00:01]} 29. Nxe4 {[%emt 0:00:02]} Bxe4 {[%emt 0:00:01]} 30.
Bxd6 {[%emt 0:00:01]} Bxb2 {[%emt 0:00:02]} 31. f3 {[%emt 0:00:10]} Bd4+ {
[%emt 0:00:10]} 32. Kh2 {[%emt 0:00:01]} Bc6 {[%emt 0:00:05]} 33. Kg3 {[%emt 0:
00:00]} Kg7 {[%emt 0:00:05]} 34. Kf4 {[%emt 0:00:02]} Kf6 {[%emt 0:00:03]} 35.
h4 {[%emt 0:00:02]} Bb2 {[%emt 0:00:12]} 36. g4 {[%emt 0:00:09]} Bc1+ {[%emt 0:
00:01]} 37. Kg3 a5 {[%emt 0:00:03]} 38. g5+ {[%emt 0:00:31]} Kg7 {[%emt 0:00:
00]} 39. Be5+ {[%emt 0:00:01]} Kg8 {[%emt 0:00:02]} 40. Bc3 {[%emt 0:00:05]} a4
{[%emt 0:00:01]} 41. Bd1 {[%emt 0:00:03]} Bd5 {[%emt 0:00:04]} 42. Be2 {
[%emt 0:00:00]} Bxa2 {[%emt 0:00:08]} 43. Bxb5 {[%emt 0:00:01]} Bb3 {[%emt 0:
00:00]} 44. Bb4 {[%emt 0:00:05]} a3 {[%emt 0:00:01]} 45. Bxa3 {[%emt 0:00:01]}
Bxa3 {[%emt 0:00:01]} 46. Bc6 {[%emt 0:00:01]} Kf8 {[%emt 0:00:01]} 47. Kf4 {
[%emt 0:00:02]} Bd6+ {[%emt 0:00:01]} 48. Kg4 {[%emt 0:00:00]} Be6# {[%emt 0:
00:01]} 0-1

[Event "FIDE Women World Blitz 2021"]
[Site "Warsaw"]
[Date "2021.12.30"]
[Round "14.23"]
[White "Zhukova, Natalia"]
[Black "Sandu, Mihaela"]
[Result "1-0"]
[ECO "E81"]
[WhiteElo "2331"]
[BlackElo "2244"]
[Annotator "NA"]
[PlyCount "76"]
[EventDate "2021.12.29"]
[EventType "swiss"]
[EventCountry "POL"]
[Tiebreak "Cut1 Buchholz"]
[SourceTitle "playchess.com"]
[Source "ChessBase"]
[SourceQuality "1"]
[TimeControl "180+2"]

1. c4 {[%emt 0:00:01]} Nf6 {[%emt 0:00:04]} 2. Nc3 {[%emt 0:00:01]} g6 {
[%emt 0:00:02]} 3. e4 {[%emt 0:00:01]} d6 {[%emt 0:00:02]} 4. d4 {[%emt 0:00:
02]} Bg7 {[%emt 0:00:00]} 5. f3 {[%emt 0:00:02]} O-O {[%emt 0:00:04]} 6. Bg5 {
[%emt 0:00:01]} h6 {[%emt 0:00:02]} 7. Be3 {[%emt 0:00:02]} e5 {[%emt 0:00:14]}
8. d5 {[%emt 0:00:09]} a5 {[%emt 0:00:15]} 9. Qd2 {[%emt 0:00:02]} Na6 {
[%emt 0:00:05]} 10. Bd3 {[%emt 0:00:26]} Nc5 {[%emt 0:00:15]} 11. Bc2 {[%emt 0:
00:01]} a4 {[%emt 0:00:09]} 12. Nge2 {[%emt 0:00:03]} Bd7 {[%emt 0:00:10]} 13.
O-O {[%emt 0:00:02]} Kh7 {[%emt 0:00:09]} 14. Nb5 {[%emt 0:00:06]} Nh5 {
[%emt 0:00:12]} 15. Nec3 {[%emt 0:00:05]} Nf4 {[%emt 0:00:08]} 16. Kh1 {
[%emt 0:00:14]} h5 {[%emt 0:00:04]} 17. g3 {[%emt 0:00:15]} Nh3 {[%emt 0:00:02]
} 18. Bxc5 {[%emt 0:00:06]} dxc5 {[%emt 0:00:01]} 19. Nxa4 {[%emt 0:00:01]} b6
{[%emt 0:00:25]} 20. Nac3 {[%emt 0:00:05]} Bh6 {[%emt 0:00:04]} 21. Qe2 {
[%emt 0:00:09]} h4 {[%emt 0:00:08]} 22. Nd1 {[%emt 0:00:34]} Rh8 {[%emt 0:00:
03]} 23. g4 {[%emt 0:00:24]} Nf4 {[%emt 0:00:05]} 24. Qf2 {[%emt 0:00:01]} h3 {
[%emt 0:00:07]} 25. Nbc3 {[%emt 0:00:15]} Bg5 {[%emt 0:00:04]} 26. Ne3 {
[%emt 0:00:06]} Kg8 {[%emt 0:00:22]} 27. a4 {[%emt 0:00:15]} Rh7 {[%emt 0:00:
07]} 28. a5 {[%emt 0:00:01]} Rxa5 {[%emt 0:00:13]} 29. Rxa5 {[%emt 0:00:01]}
bxa5 {[%emt 0:00:01]} 30. Ra1 {[%emt 0:00:01]} Qb8 {[%emt 0:00:03]} 31. Ned1 {
[%emt 0:00:05]} Qb4 {[%emt 0:00:03]} 32. b3 {[%emt 0:00:09]} Kg7 {[%emt 0:00:
06]} 33. Na2 {[%emt 0:00:03]} Qa3 {[%emt 0:00:04]} 34. Qe1 {[%emt 0:00:04]} Ng2
{[%emt 0:00:07]} 35. Qc3 {[%emt 0:00:01]} Bf4 {[%emt 0:00:06]} 36. Nf2 {
[%emt 0:00:04]} a4 {[%emt 0:00:02]} 37. Nd3 {[%emt 0:00:01]} axb3 {[%emt 0:00:
03]} 38. Bxb3 {[%emt 0:00:02]} f6 {[%emt 0:00:05]} 1-0

[Event "FIDE Women World Blitz 2021"]
[Site "Warsaw"]
[Date "2021.12.30"]
[Round "14.24"]
[White "Zawadzka, Jolanta"]
[Black "Batsiashvili, Nino"]
[Result "0-1"]
[ECO "B00"]
[WhiteElo "2429"]
[BlackElo "2491"]
[Annotator "ChessBase"]
[PlyCount "90"]
[EventDate "2021.12.29"]
[EventType "swiss"]
[EventCountry "POL"]
[Tiebreak "Cut1 Buchholz"]
[SourceTitle "playchess.com"]
[Source "ChessBase"]
[SourceQuality "1"]
[TimeControl "180+2"]

1. e4 {[%emt 0:00:01]} b6 {[%emt 0:00:00]} 2. d4 {[%emt 0:00:02]} Bb7 {[%emt 0:
00:01]} 3. Nc3 {[%emt 0:00:01]} e6 {[%emt 0:00:01]} 4. Bd3 {[%emt 0:00:02]} Nf6
{[%emt 0:00:02]} 5. Nge2 {[%emt 0:00:02]} d5 {[%emt 0:00:04]} 6. e5 {[%emt 0:
00:03]} Ne4 {[%emt 0:00:00]} 7. Be3 {[%emt 0:00:22]} Be7 {[%emt 0:00:05]} 8.
Bxe4 {[%emt 0:00:10]} dxe4 {[%emt 0:00:02]} 9. Ng3 {[%emt 0:00:02]} O-O {
[%emt 0:00:58]} 10. Qg4 {[%emt 0:00:06]} f5 {[%emt 0:00:19]} 11. exf6 {[%emt 0:
00:02]} Bxf6 {[%emt 0:00:04]} 12. O-O-O {[%emt 0:00:07]} Qe7 {[%emt 0:00:16]}
13. Ncxe4 {[%emt 0:00:04]} Nd7 {[%emt 0:00:01]} 14. Rhe1 {[%emt 0:00:08]} Rae8
{[%emt 0:00:07]} 15. Kb1 {[%emt 0:00:13]} Qb4 {[%emt 0:00:25]} 16. Nh5 {
[%emt 0:00:13]} Rf7 {[%emt 0:00:13]} 17. c3 {[%emt 0:00:38]} Qa5 {[%emt 0:00:
09]} 18. Nhxf6+ {[%emt 0:00:04]} Nxf6 {[%emt 0:00:01]} 19. Nxf6+ {[%emt 0:00:
01]} Rxf6 {[%emt 0:00:00]} 20. f3 {[%emt 0:00:27]} Bd5 {[%emt 0:00:03]} 21. a3
{[%emt 0:00:26]} Rg6 {[%emt 0:00:02]} 22. Qf4 {[%emt 0:00:10]} b5 {[%emt 0:00:
23]} 23. Rd2 {[%emt 0:00:05]} Qb6 {[%emt 0:00:07]} 24. Bg1 {[%emt 0:00:04]} a5
{[%emt 0:00:03]} 25. Re5 {[%emt 0:00:05]} Qc6 {[%emt 0:00:03]} 26. Qe3 {
[%emt 0:00:03]} Qc4 {[%emt 0:00:05]} 27. Bf2 {[%emt 0:00:08]} Rb8 {[%emt 0:00:
01]} 28. g4 {[%emt 0:00:02]} Qa2+ {[%emt 0:00:03]} 29. Kc1 {[%emt 0:00:02]} b4
{[%emt 0:00:01]} 30. Rxd5 {[%emt 0:00:03]} Qxd5 {[%emt 0:00:02]} 31. axb4 {
[%emt 0:00:02]} axb4 {[%emt 0:00:00]} 32. Qe4 {[%emt 0:00:01]} bxc3 {[%emt 0:
00:02]} 33. bxc3 {[%emt 0:00:02]} Qa5 {[%emt 0:00:03]} 34. Kd1 {[%emt 0:00:03]}
Rf6 {[%emt 0:00:04]} 35. Qd3 {[%emt 0:00:02]} Rbf8 {[%emt 0:00:02]} 36. Bg3 {
[%emt 0:00:03]} Rxf3 {[%emt 0:00:02]} 37. Qc4 {[%emt 0:00:02]} Qb6 {[%emt 0:00:
04]} 38. Ke2 {[%emt 0:00:01]} R3f7 {[%emt 0:00:02]} 39. Ra2 {[%emt 0:00:03]}
Qb7 {[%emt 0:00:01]} 40. Qxe6 {[%emt 0:00:03]} Qf3+ {[%emt 0:00:01]} 41. Ke1 {
[%emt 0:00:02]} Kh8 {[%emt 0:00:03]} 42. Rf2 {[%emt 0:00:02]} Qxc3+ {[%emt 0:
00:04]} 43. Kf1 {[%emt 0:00:01]} Rxf2+ 44. Bxf2 {[%emt 0:00:01]} Qf3 {[%emt 0:
00:04]} 45. Qe2 {[%emt 0:00:01]} Qh1# {[%emt 0:00:03]} 0-1